[Event "Titled Tuesday Blitz August 08 Late 2023"]
[White "Osmak, Yuliia"]
[Black "alfianasybullina"]
[WhiteFideId "14101602"]
[WhiteElo "2479"]
[BlackElo "2259"]
[Result "1-0"]
[Round "2"]
[TimeControl "180+1"]
[Date "2023.08.08"]
[WhiteClock "0:00:12"]
[BlackClock "0:00:16"]
[Board "166"]

1. e4 {[%clk 0:02:57]}  c6 {[%clk 0:02:57]} 2. d4 {[%clk 0:02:54]}  d5 {[%clk 0:02:57]} 3. exd5 {[%clk 0:02:54]}  cxd5 {[%clk 0:02:58]} 4. Bd3 {[%clk 0:02:54]}  Nc6 {[%clk 0:02:58]} 5. c3 {[%clk 0:02:53]}  Nf6 {[%clk 0:02:58]} 6. Bf4 {[%clk 0:02:52]}  Bg4 {[%clk 0:02:58]} 7. Qb3 {[%clk 0:02:51]}  Qc8 {[%clk 0:02:58]} 8. Nd2 {[%clk 0:02:50]}  e6 {[%clk 0:02:56]} 9. Ngf3 {[%clk 0:02:49]}  Bxf3 {[%clk 0:02:55]} 10. Nxf3 {[%clk 0:02:48]}  Be7 {[%clk 0:02:55]} 11. O-O {[%clk 0:02:42]}  O-O {[%clk 0:02:55]} 12. Rae1 {[%clk 0:02:36]}  a6 {[%clk 0:02:54]} 13. Ne5 {[%clk 0:02:33]}  Nd7 {[%clk 0:02:49]} 14. Qc2 {[%clk 0:02:17]}  h6 {[%clk 0:02:40]} 15. Ng4 {[%clk 0:02:10]}  Nf6 {[%clk 0:02:28]} 16. Nxh6+ {[%clk 0:01:54]}  gxh6 {[%clk 0:02:26]} 17. Bxh6 {[%clk 0:01:55]}  Ne4 {[%clk 0:02:18]} 18. Bxe4 {[%clk 0:01:51]}  dxe4 {[%clk 0:02:19]} 19. Bxf8 {[%clk 0:01:13]}  Kxf8 {[%clk 0:02:14]} 20. Qxe4 {[%clk 0:01:11]}  f5 {[%clk 0:01:59]} 21. Qxe6 {[%clk 0:01:10]}  Qxe6 {[%clk 0:02:00]} 22. Rxe6 {[%clk 0:01:11]}  Kf7 {[%clk 0:01:59]} 23. Rfe1 {[%clk 0:01:10]}  Rd8 {[%clk 0:01:58]} 24. g3 {[%clk 0:01:05]}  Bf6 {[%clk 0:01:57]} 25. h4 {[%clk 0:01:02]}  Rg8 {[%clk 0:01:51]} 26. Kf1 {[%clk 0:00:59]}  Ne7 {[%clk 0:01:44]} 27. Rb6 {[%clk 0:00:57]}  f4 {[%clk 0:01:42]} 28. Rxb7 {[%clk 0:00:44]}  fxg3 {[%clk 0:01:41]} 29. fxg3 {[%clk 0:00:44]}  Rxg3 {[%clk 0:01:40]} 30. Re4 {[%clk 0:00:23]}  Rh3 {[%clk 0:01:36]} 31. d5 {[%clk 0:00:21]}  Kf8 {[%clk 0:01:18]} 32. d6 {[%clk 0:00:20]}  Nf5 {[%clk 0:00:54]} 33. Kg2 {[%clk 0:00:14]}  Rg3+ {[%clk 0:00:45]} 34. Kh2 {[%clk 0:00:14]}  Rd3 {[%clk 0:00:44]} 35. d7 {[%clk 0:00:13]}  Rd2+ {[%clk 0:00:42]} 36. Kh3 {[%clk 0:00:13]}  Rd3+ {[%clk 0:00:19]} 37. Kg4 {[%clk 0:00:13]}  Ng3 {[%clk 0:00:18]} 38. Re8+ {[%clk 0:00:12]}  Kg7 {[%clk 0:00:17]} 39. d8=Q+ {[%clk 0:00:12]}  Kg6 {[%clk 0:00:17]} 40. h5+ {[%clk 0:00:11]}  Kh6 {[%clk 0:00:17]} 41. Rh8+ {[%clk 0:00:11]}  Bxh8 {[%clk 0:00:16]} 42. Qxh8# {[%clk 0:00:12]} 1-0


[Site "https://www.chess.com"]

[Event "Titled Tuesday Blitz August 08 Late 2023"]
[White "Gaal, Zsoka"]
[Black "Rabiega, Robert"]
[WhiteFideId "777765"]
[BlackFideId "4601475"]
[WhiteElo "2475"]
[BlackElo "2257"]
[Result "1-0"]
[Round "2"]
[TimeControl "180+1"]
[Date "2023.08.08"]
[WhiteClock "0:00:17"]
[BlackClock "0:00:06"]
[Board "167"]

1. Nf3 {[%clk 0:03:00]}  d5 {[%clk 0:03:00]} 2. g3 {[%clk 0:02:59]}  c5 {[%clk 0:03:00]} 3. Bg2 {[%clk 0:02:55]}  e6 {[%clk 0:03:01]} 4. O-O {[%clk 0:02:55]}  Nc6 {[%clk 0:03:01]} 5. b3 {[%clk 0:02:55]}  Nf6 {[%clk 0:03:02]} 6. Bb2 {[%clk 0:02:55]}  Be7 {[%clk 0:03:02]} 7. e3 {[%clk 0:02:56]}  O-O {[%clk 0:03:02]} 8. c4 {[%clk 0:02:56]}  b6 {[%clk 0:02:57]} 9. d4 {[%clk 0:02:46]}  Bb7 {[%clk 0:02:56]} 10. cxd5 {[%clk 0:02:45]}  exd5 {[%clk 0:02:56]} 11. Nc3 {[%clk 0:02:37]}  Rc8 {[%clk 0:02:55]} 12. Rc1 {[%clk 0:02:35]}  Qd7 {[%clk 0:02:46]} 13. Ne5 {[%clk 0:02:29]}  Qe6 {[%clk 0:02:37]} 14. Nxc6 {[%clk 0:02:14]}  Bxc6 {[%clk 0:02:38]} 15. dxc5 {[%clk 0:02:08]}  bxc5 {[%clk 0:02:38]} 16. Ne2 {[%clk 0:02:07]}  Rfd8 {[%clk 0:02:28]} 17. Nf4 {[%clk 0:02:05]}  Qd6 {[%clk 0:02:10]} 18. Qc2 {[%clk 0:02:01]}  h6 {[%clk 0:01:51]} 19. Rfd1 {[%clk 0:02:00]}  Qb8 {[%clk 0:01:32]} 20. Qf5 {[%clk 0:01:58]}  Qb7 {[%clk 0:01:24]} 21. Bxf6 {[%clk 0:01:42]}  Bxf6 {[%clk 0:01:25]} 22. Rxc5 {[%clk 0:01:21]}  d4 {[%clk 0:01:16]} 23. Bxc6 {[%clk 0:01:01]}  Rxc6 {[%clk 0:01:17]} 24. Qe4 {[%clk 0:00:51]}  Rb6 {[%clk 0:01:07]} 25. Qxb7 {[%clk 0:00:51]}  Rxb7 {[%clk 0:01:07]} 26. Nd5 {[%clk 0:00:48]}  Be7 {[%clk 0:00:40]} 27. Nxe7+ {[%clk 0:00:48]}  Rxe7 {[%clk 0:00:41]} 28. Rxd4 {[%clk 0:00:40]}  Rxd4 {[%clk 0:00:39]} 29. exd4 {[%clk 0:00:41]}  Rd7 {[%clk 0:00:37]} 30. d5 {[%clk 0:00:38]}  Kf8 {[%clk 0:00:38]} 31. b4 {[%clk 0:00:36]}  Ke7 {[%clk 0:00:38]} 32. Kf1 {[%clk 0:00:31]}  Kd6 {[%clk 0:00:38]} 33. Ke2 {[%clk 0:00:31]}  Rb7 {[%clk 0:00:36]} 34. a3 {[%clk 0:00:30]}  Re7+ {[%clk 0:00:36]} 35. Kd3 {[%clk 0:00:31]}  Re1 {[%clk 0:00:36]} 36. Ra5 {[%clk 0:00:25]}  Rd1+ {[%clk 0:00:35]} 37. Ke3 {[%clk 0:00:24]}  Re1+ {[%clk 0:00:30]} 38. Kd2 {[%clk 0:00:24]}  Rf1 {[%clk 0:00:28]} 39. Ke2 {[%clk 0:00:24]}  Ra1 {[%clk 0:00:26]} 40. Rxa7 {[%clk 0:00:22]}  Kxd5 {[%clk 0:00:27]} 41. Rxf7 {[%clk 0:00:20]}  Ra2+ {[%clk 0:00:27]} 42. Kf1 {[%clk 0:00:19]}  Rxa3 {[%clk 0:00:24]} 43. Rxg7 {[%clk 0:00:19]}  Rb3 {[%clk 0:00:22]} 44. Rb7 {[%clk 0:00:19]}  Ke4 {[%clk 0:00:22]} 45. Kg2 {[%clk 0:00:19]}  h5 {[%clk 0:00:22]} 46. b5 {[%clk 0:00:19]}  h4 {[%clk 0:00:22]} 47. gxh4 {[%clk 0:00:19]}  Kf4 {[%clk 0:00:21]} 48. h3 {[%clk 0:00:17]}  Kf5 {[%clk 0:00:18]} 49. Rb6 {[%clk 0:00:17]}  Rb4 {[%clk 0:00:17]} 50. Kg3 {[%clk 0:00:16]}  Rb3+ {[%clk 0:00:17]} 51. f3 {[%clk 0:00:17]}  Rb1 {[%clk 0:00:18]} 52. h5 {[%clk 0:00:17]}  Kg5 {[%clk 0:00:17]} 53. h6 {[%clk 0:00:17]}  Rg1+ {[%clk 0:00:16]} 54. Kf2 {[%clk 0:00:18]}  Rh1 {[%clk 0:00:16]} 55. Kg2 {[%clk 0:00:18]}  Rd1 {[%clk 0:00:14]} 56. h7 {[%clk 0:00:19]}  Rd8 {[%clk 0:00:13]} 57. Rb7 {[%clk 0:00:19]}  Kf4 {[%clk 0:00:13]} 58. Rf7+ {[%clk 0:00:17]}  Ke5 {[%clk 0:00:08]} 59. b6 {[%clk 0:00:18]}  Rh8 {[%clk 0:00:06]} 60. b7 {[%clk 0:00:17]} 1-0


[Site "https://www.chess.com"]

[Event "Titled Tuesday Blitz August 08 Late 2023"]
[White "Svicevic, Rastko"]
[Black "Cheng, Xiao"]
[WhiteFideId "916315"]
[BlackFideId "2022915"]
[WhiteElo "2257"]
[BlackElo "2474"]
[Result "0-1"]
[Round "2"]
[TimeControl "180+1"]
[Date "2023.08.08"]
[WhiteClock "0:00:00"]
[BlackClock "0:00:19"]
[Board "168"]

1. d4 {[%clk 0:03:00]}  f5 {[%clk 0:02:52]} 2. Bg5 {[%clk 0:02:59]}  Nf6 {[%clk 0:02:49]} 3. Bxf6 {[%clk 0:02:58]}  exf6 {[%clk 0:02:50]} 4. g3 {[%clk 0:02:58]}  d5 {[%clk 0:02:50]} 5. Bg2 {[%clk 0:02:59]}  c6 {[%clk 0:02:51]} 6. e3 {[%clk 0:02:59]}  Bd6 {[%clk 0:02:51]} 7. Ne2 {[%clk 0:02:59]}  O-O {[%clk 0:02:52]} 8. Nd2 {[%clk 0:02:59]}  Bd7 {[%clk 0:02:46]} 9. O-O {[%clk 0:02:59]}  Qe7 {[%clk 0:02:44]} 10. c4 {[%clk 0:02:58]}  dxc4 {[%clk 0:02:43]} 11. Nxc4 {[%clk 0:02:57]}  Bc7 {[%clk 0:02:44]} 12. Qc2 {[%clk 0:02:47]}  Kh8 {[%clk 0:02:42]} 13. Nf4 {[%clk 0:02:32]}  Bxf4 {[%clk 0:02:39]} 14. gxf4 {[%clk 0:02:31]}  Na6 {[%clk 0:02:40]} 15. a3 {[%clk 0:02:29]}  Nc7 {[%clk 0:02:40]} 16. b4 {[%clk 0:02:28]}  Ne8 {[%clk 0:02:31]} 17. Rfd1 {[%clk 0:02:13]}  Nd6 {[%clk 0:02:30]} 18. Nxd6 {[%clk 0:02:10]}  Qxd6 {[%clk 0:02:30]} 19. d5 {[%clk 0:02:09]}  cxd5 {[%clk 0:02:24]} 20. Rxd5 {[%clk 0:02:09]}  Qe7 {[%clk 0:02:22]} 21. Qc7 {[%clk 0:02:07]}  Qe8 {[%clk 0:02:00]} 22. Rxd7 {[%clk 0:01:59]}  Qg6 {[%clk 0:01:57]} 23. Rad1 {[%clk 0:01:56]}  h5 {[%clk 0:01:41]} 24. Rd8 {[%clk 0:01:55]}  Kh7 {[%clk 0:01:41]} 25. Rxa8 {[%clk 0:01:51]}  Rxa8 {[%clk 0:01:41]} 26. Qxb7 {[%clk 0:01:52]}  Rf8 {[%clk 0:01:38]} 27. b5 {[%clk 0:01:49]}  h4 {[%clk 0:01:38]} 28. Qf3 {[%clk 0:01:49]}  Rc8 {[%clk 0:01:37]} 29. a4 {[%clk 0:01:50]}  Rc2 {[%clk 0:01:36]} 30. a5 {[%clk 0:01:49]}  Rb2 {[%clk 0:01:36]} 31. Qh3 {[%clk 0:01:19]}  Qh5 {[%clk 0:01:30]} 32. Bf3 {[%clk 0:01:09]}  Qg6+ {[%clk 0:01:28]} 33. Kh1 {[%clk 0:01:09]}  Qh6 {[%clk 0:01:28]} 34. Bc6 {[%clk 0:00:52]}  Qh5 {[%clk 0:01:20]} 35. Rg1 {[%clk 0:00:49]}  Rxf2 {[%clk 0:01:18]} 36. b6 {[%clk 0:00:46]}  axb6 {[%clk 0:01:17]} 37. axb6 {[%clk 0:00:45]}  Rb2 {[%clk 0:01:17]} 38. b7 {[%clk 0:00:42]}  Kg8 {[%clk 0:01:13]} 39. Bf3 {[%clk 0:00:42]}  Qh7 {[%clk 0:01:04]} 40. Rc1 {[%clk 0:00:38]}  Kf7 {[%clk 0:01:04]} 41. Qf1 {[%clk 0:00:23]}  Kg6 {[%clk 0:00:51]} 42. Qc4 {[%clk 0:00:15]}  h3 {[%clk 0:00:47]} 43. Rg1+ {[%clk 0:00:15]}  Kh6 {[%clk 0:00:45]} 44. Qf7 {[%clk 0:00:15]}  g6 {[%clk 0:00:41]} 45. Qxh7+ {[%clk 0:00:14]}  Kxh7 {[%clk 0:00:40]} 46. Rc1 {[%clk 0:00:13]}  g5 {[%clk 0:00:40]} 47. Kg1 {[%clk 0:00:11]}  g4 {[%clk 0:00:40]} 48. Bh1 {[%clk 0:00:11]}  Kg6 {[%clk 0:00:37]} 49. Kf1 {[%clk 0:00:11]}  Kh5 {[%clk 0:00:36]} 50. Rc8 {[%clk 0:00:09]}  Rb1+ {[%clk 0:00:30]} 51. Ke2 {[%clk 0:00:08]}  Rxh1 {[%clk 0:00:29]} 52. b8=Q {[%clk 0:00:06]}  Rxh2+ {[%clk 0:00:29]} 53. Kd3 {[%clk 0:00:07]}  Kh4 {[%clk 0:00:29]} 54. Rh8+ {[%clk 0:00:06]}  Kg3 {[%clk 0:00:30]} 55. Qb1 {[%clk 0:00:05]}  Rg2 {[%clk 0:00:30]} 56. Qe1+ {[%clk 0:00:05]}  Rf2 {[%clk 0:00:29]} 57. e4 {[%clk 0:00:04]}  fxe4+ {[%clk 0:00:29]} 58. Kxe4 {[%clk 0:00:03]}  Kg2 {[%clk 0:00:28]} 59. Kf5 {[%clk 0:00:02]}  g3 {[%clk 0:00:27]} 60. Qe4+ {[%clk 0:00:03]}  Kh2 {[%clk 0:00:25]} 61. Rh4 {[%clk 0:00:03]}  Ra2 {[%clk 0:00:23]} 62. Qe3 {[%clk 0:00:03]}  Ra5+ {[%clk 0:00:22]} 63. Kg6 {[%clk 0:00:03]}  f5 {[%clk 0:00:22]} 64. Kg5 {[%clk 0:00:02]}  Ra8 {[%clk 0:00:20]} 65. Qe2+ {[%clk 0:00:03]}  g2 {[%clk 0:00:20]} 66. Qh5 {[%clk 0:00:03]}  Rg8+ {[%clk 0:00:19]} 67. Kxf5 {[%clk 0:00:03]}  Rg3 {[%clk 0:00:19]} 68. Rxh3+ {[%clk 0:00:04]}  Rxh3 {[%clk 0:00:19]} 69. Qe2 {[%clk 0:00:04]}  Kh1 {[%clk 0:00:19]} 70. Qxg2+ {[%clk 0:00:00]}  Kxg2 {[%clk 0:00:19]} 0-1


[Site "https://www.chess.com"]

[Event "Titled Tuesday Blitz August 08 Late 2023"]
[White "Ward, Ieuan C"]
[Black "JERO-8914"]
[WhiteFideId "406627"]
[WhiteElo "2250"]
[BlackElo "2468"]
[Result "1-0"]
[Round "2"]
[TimeControl "180+1"]
[Date "2023.08.08"]
[WhiteClock "0:01:01"]
[BlackClock "0:00:56"]
[Board "169"]

1. d4 {[%clk 0:02:57]}  Nf6 {[%clk 0:02:59]} 2. c4 {[%clk 0:02:55]}  e6 {[%clk 0:02:59]} 3. Nf3 {[%clk 0:02:54]}  b6 {[%clk 0:02:59]} 4. g3 {[%clk 0:02:55]}  Bb7 {[%clk 0:02:59]} 5. Bg2 {[%clk 0:02:55]}  Bb4+ {[%clk 0:02:59]} 6. Bd2 {[%clk 0:02:55]}  Be7 {[%clk 0:03:00]} 7. O-O {[%clk 0:02:55]}  O-O {[%clk 0:03:00]} 8. Nc3 {[%clk 0:02:55]}  d5 {[%clk 0:03:00]} 9. Ne5 {[%clk 0:02:53]}  Nbd7 {[%clk 0:03:01]} 10. cxd5 {[%clk 0:02:52]}  exd5 {[%clk 0:02:58]} 11. Bf4 {[%clk 0:02:46]}  c5 {[%clk 0:02:58]} 12. dxc5 {[%clk 0:02:43]}  Nxc5 {[%clk 0:02:58]} 13. Qd4 {[%clk 0:02:30]}  Ne6 {[%clk 0:02:56]} 14. Qd2 {[%clk 0:02:26]}  Nxf4 {[%clk 0:02:54]} 15. Qxf4 {[%clk 0:02:23]}  Bd6 {[%clk 0:02:53]} 16. Qd4 {[%clk 0:02:23]}  Qe7 {[%clk 0:02:44]} 17. Ng4 {[%clk 0:02:15]}  Nxg4 {[%clk 0:02:29]} 18. Qxg4 {[%clk 0:02:15]}  Qe6 {[%clk 0:02:05]} 19. Qh5 {[%clk 0:01:59]}  Be5 {[%clk 0:02:02]} 20. Rad1 {[%clk 0:01:49]}  Rfd8 {[%clk 0:02:01]} 21. e3 {[%clk 0:01:39]}  Rac8 {[%clk 0:02:01]} 22. Bh3 {[%clk 0:01:33]}  Qe7 {[%clk 0:01:34]} 23. Bxc8 {[%clk 0:01:32]}  Rxc8 {[%clk 0:01:28]} 24. Nxd5 {[%clk 0:01:30]}  Qe6 {[%clk 0:01:27]} 25. e4 {[%clk 0:01:21]}  Bxb2 {[%clk 0:01:23]} 26. Qg5 {[%clk 0:01:15]}  f6 {[%clk 0:01:13]} 27. Qf5 {[%clk 0:01:05]}  Qxf5 {[%clk 0:01:06]} 28. Ne7+ {[%clk 0:01:00]}  Kf8 {[%clk 0:01:05]} 29. Nxf5 {[%clk 0:01:00]}  Bxe4 {[%clk 0:00:56]} 30. Nd6 {[%clk 0:01:01]} 1-0


[Site "https://www.chess.com"]

[Event "Titled Tuesday Blitz August 08 Late 2023"]
[White "Krasteva, Beloslava"]
[Black "Delorme, Axel"]
[WhiteFideId "2922029"]
[BlackFideId "632023"]
[WhiteElo "2238"]
[BlackElo "2466"]
[Result "1-0"]
[Round "2"]
[TimeControl "180+1"]
[Date "2023.08.08"]
[WhiteClock "0:01:16"]
[BlackClock "0:00:04"]
[Board "171"]

1. c4 {[%clk 0:03:00]}  e6 {[%clk 0:02:58]} 2. Nc3 {[%clk 0:02:59]}  d5 {[%clk 0:02:59]} 3. e3 {[%clk 0:02:58]}  Nf6 {[%clk 0:02:58]} 4. d4 {[%clk 0:02:57]}  c5 {[%clk 0:02:58]} 5. cxd5 {[%clk 0:02:56]}  exd5 {[%clk 0:02:58]} 6. Nf3 {[%clk 0:02:56]}  Nc6 {[%clk 0:02:57]} 7. Bb5 {[%clk 0:02:53]}  cxd4 {[%clk 0:02:57]} 8. Nxd4 {[%clk 0:02:51]}  Bd7 {[%clk 0:02:58]} 9. O-O {[%clk 0:02:47]}  Bd6 {[%clk 0:02:57]} 10. Be2 {[%clk 0:02:35]}  O-O {[%clk 0:02:48]} 11. Nf3 {[%clk 0:02:29]}  Be6 {[%clk 0:02:47]} 12. b3 {[%clk 0:02:28]}  Rc8 {[%clk 0:02:42]} 13. Bb2 {[%clk 0:02:28]}  Re8 {[%clk 0:02:41]} 14. Nb5 {[%clk 0:02:27]}  Bb8 {[%clk 0:02:38]} 15. Nbd4 {[%clk 0:02:26]}  Ne4 {[%clk 0:02:27]} 16. Rc1 {[%clk 0:02:23]}  Qf6 {[%clk 0:01:39]} 17. Bb5 {[%clk 0:01:50]}  Nxd4 {[%clk 0:01:35]} 18. Bxd4 {[%clk 0:01:42]}  Qh6 {[%clk 0:01:34]} 19. Bxe8 {[%clk 0:01:40]}  Rxc1 {[%clk 0:01:11]} 20. Qxc1 {[%clk 0:01:37]}  Ng5 {[%clk 0:00:57]} 21. Ne5 {[%clk 0:01:30]}  Qf6 {[%clk 0:00:20]} 22. f4 {[%clk 0:01:27]}  Ne4 {[%clk 0:00:04]} 23. Bd7 {[%clk 0:01:16]} 1-0


[Site "https://www.chess.com"]

[Event "Titled Tuesday Blitz August 08 Late 2023"]
[White "Zeman, Matyas"]
[Black "Biliy, Vadim"]
[WhiteFideId "364398"]
[BlackFideId "14114127"]
[WhiteElo "2463"]
[BlackElo "2222"]
[Result "1-0"]
[Round "2"]
[TimeControl "180+1"]
[Date "2023.08.08"]
[WhiteClock "0:00:17"]
[BlackClock "0:00:00"]
[Board "174"]

1. d4 {[%clk 0:03:00]}  c5 {[%clk 0:02:59]} 2. d5 {[%clk 0:03:01]}  f5 {[%clk 0:02:59]} 3. Nc3 {[%clk 0:03:02]}  Nf6 {[%clk 0:02:59]} 4. Bg5 {[%clk 0:03:00]}  Qb6 {[%clk 0:02:58]} 5. Bxf6 {[%clk 0:02:59]}  Qxf6 {[%clk 0:02:57]} 6. e3 {[%clk 0:02:56]}  e5 {[%clk 0:02:55]} 7. Nge2 {[%clk 0:02:52]}  d6 {[%clk 0:02:50]} 8. Ng3 {[%clk 0:02:49]}  a6 {[%clk 0:02:46]} 9. a4 {[%clk 0:02:47]}  g6 {[%clk 0:02:41]} 10. Bc4 {[%clk 0:02:32]}  Bg7 {[%clk 0:02:37]} 11. O-O {[%clk 0:02:28]}  O-O {[%clk 0:02:36]} 12. f3 {[%clk 0:02:23]}  Kh8 {[%clk 0:02:35]} 13. Ra3 {[%clk 0:02:20]}  Rf7 {[%clk 0:02:24]} 14. Rb3 {[%clk 0:02:17]}  h5 {[%clk 0:02:22]} 15. a5 {[%clk 0:02:13]}  h4 {[%clk 0:02:21]} 16. Nh1 {[%clk 0:02:11]}  Qg5 {[%clk 0:02:16]} 17. Qe2 {[%clk 0:02:07]}  Bh6 {[%clk 0:02:14]} 18. Na4 {[%clk 0:02:05]}  Nd7 {[%clk 0:02:04]} 19. Nf2 {[%clk 0:02:05]}  Rb8 {[%clk 0:01:56]} 20. Nb6 {[%clk 0:02:02]}  Nxb6 {[%clk 0:01:50]} 21. Nh3 {[%clk 0:01:55]}  Qh5 {[%clk 0:01:10]} 22. Rxb6 {[%clk 0:01:54]}  Bf8 {[%clk 0:01:07]} 23. f4 {[%clk 0:01:49]}  Qxe2 {[%clk 0:01:01]} 24. Bxe2 {[%clk 0:01:50]}  e4 {[%clk 0:01:00]} 25. Ng5 {[%clk 0:01:49]}  Rf6 {[%clk 0:00:53]} 26. Bc4 {[%clk 0:01:49]}  Be7 {[%clk 0:00:49]} 27. c3 {[%clk 0:01:46]}  Bd8 {[%clk 0:00:49]} 28. Rxd6 {[%clk 0:01:43]}  Rxd6 {[%clk 0:00:43]} 29. Nf7+ {[%clk 0:01:44]}  Kg7 {[%clk 0:00:43]} 30. Nxd6 {[%clk 0:01:45]}  Bxa5 {[%clk 0:00:42]} 31. Bb3 {[%clk 0:00:34]}  Bd7 {[%clk 0:00:39]} 32. Rd1 {[%clk 0:00:32]}  Bc7 {[%clk 0:00:32]} 33. Nc4 {[%clk 0:00:32]}  b5 {[%clk 0:00:32]} 34. Ne5 {[%clk 0:00:32]}  Rd8 {[%clk 0:00:25]} 35. d6 {[%clk 0:00:30]}  Bb6 {[%clk 0:00:25]} 36. Bd5 {[%clk 0:00:23]}  c4 {[%clk 0:00:24]} 37. Kf2 {[%clk 0:00:23]}  Bc8 {[%clk 0:00:22]} 38. Bc6 {[%clk 0:00:23]}  a5 {[%clk 0:00:16]} 39. Bxb5 {[%clk 0:00:21]}  Bc5 {[%clk 0:00:12]} 40. d7 {[%clk 0:00:21]}  Bb7 {[%clk 0:00:12]} 41. Bc6 {[%clk 0:00:21]}  Ba6 {[%clk 0:00:10]} 42. Rd5 {[%clk 0:00:22]}  Bb6 {[%clk 0:00:09]} 43. Bb5 {[%clk 0:00:16]}  Bb7 {[%clk 0:00:08]} 44. Rd6 {[%clk 0:00:16]}  Bc7 {[%clk 0:00:08]} 45. Rxg6+ {[%clk 0:00:16]}  Kh7 {[%clk 0:00:08]} 46. Rf6 {[%clk 0:00:16]}  Bxe5 {[%clk 0:00:04]} 47. fxe5 {[%clk 0:00:17]}  Kg7 {[%clk 0:00:00]} 48. Rxf5 {[%clk 0:00:17]} 1-0


[Site "https://www.chess.com"]

[Event "Titled Tuesday Blitz August 08 Late 2023"]
[White "Prithu Gupta"]
[Black "De Arruda, Leandro Formes"]
[WhiteFideId "46618546"]
[BlackFideId "22722009"]
[WhiteElo "2462"]
[BlackElo "2209"]
[Result "0-1"]
[Round "2"]
[TimeControl "180+1"]
[Date "2023.08.08"]
[WhiteClock "0:00:32"]
[BlackClock "0:00:15"]
[Board "176"]

1. c4 {[%clk 0:02:59]}  e6 {[%clk 0:03:00]} 2. g3 {[%clk 0:02:59]}  d5 {[%clk 0:03:01]} 3. Bg2 {[%clk 0:02:59]}  Nf6 {[%clk 0:03:01]} 4. Nf3 {[%clk 0:02:59]}  c6 {[%clk 0:03:02]} 5. O-O {[%clk 0:03:00]}  Be7 {[%clk 0:03:02]} 6. d3 {[%clk 0:02:59]}  O-O {[%clk 0:03:02]} 7. Nc3 {[%clk 0:02:59]}  dxc4 {[%clk 0:03:01]} 8. dxc4 {[%clk 0:02:59]}  Qxd1 {[%clk 0:03:00]} 9. Rxd1 {[%clk 0:03:00]}  Nbd7 {[%clk 0:03:00]} 10. Bf4 {[%clk 0:02:58]}  Nb6 {[%clk 0:02:58]} 11. b3 {[%clk 0:02:58]}  Nh5 {[%clk 0:02:51]} 12. Bd6 {[%clk 0:02:58]}  Bxd6 {[%clk 0:02:47]} 13. Rxd6 {[%clk 0:02:59]}  Nd7 {[%clk 0:02:37]} 14. Rad1 {[%clk 0:02:55]}  Nhf6 {[%clk 0:02:35]} 15. g4 {[%clk 0:02:50]}  h6 {[%clk 0:02:31]} 16. h4 {[%clk 0:02:49]}  Nc5 {[%clk 0:02:23]} 17. g5 {[%clk 0:02:45]}  Nfe4 {[%clk 0:02:13]} 18. Nxe4 {[%clk 0:02:43]}  Nxe4 {[%clk 0:02:14]} 19. Rd8 {[%clk 0:02:43]}  Nc3 {[%clk 0:01:59]} 20. Rxf8+ {[%clk 0:02:40]}  Kxf8 {[%clk 0:02:00]} 21. Rd8+ {[%clk 0:02:41]}  Ke7 {[%clk 0:02:00]} 22. Rg8 {[%clk 0:02:25]}  hxg5 {[%clk 0:01:45]} 23. Nxg5 {[%clk 0:01:58]}  Kf6 {[%clk 0:00:33]} 24. Ne4+ {[%clk 0:01:56]}  Nxe4 {[%clk 0:00:33]} 25. Bxe4 {[%clk 0:01:57]}  a5 {[%clk 0:00:31]} 26. a4 {[%clk 0:01:52]}  g6 {[%clk 0:00:30]} 27. f4 {[%clk 0:01:52]}  Ke7 {[%clk 0:00:28]} 28. Kf2 {[%clk 0:01:48]}  Rb8 {[%clk 0:00:26]} 29. Bd3 {[%clk 0:01:44]}  Ra8 {[%clk 0:00:21]} 30. Kf3 {[%clk 0:01:39]}  b6 {[%clk 0:00:20]} 31. Rg7 {[%clk 0:00:32]}  Kf8 {[%clk 0:00:15]} 0-1


[Site "https://www.chess.com"]

[Event "Titled Tuesday Blitz August 08 Late 2023"]
[White "Guerrero Vargas, Andres Jesus"]
[Black "Butti, Enrique"]
[WhiteFideId "3902048"]
[BlackFideId "3700470"]
[WhiteElo "2459"]
[BlackElo "2194"]
[Result "0-1"]
[Round "2"]
[TimeControl "180+1"]
[Date "2023.08.08"]
[WhiteClock "0:00:04"]
[BlackClock "0:00:31"]
[Board "180"]

1. e4 {[%clk 0:03:00]}  c5 {[%clk 0:02:58]} 2. d4 {[%clk 0:03:00]}  cxd4 {[%clk 0:02:56]} 3. c3 {[%clk 0:03:00]}  d3 {[%clk 0:02:56]} 4. c4 {[%clk 0:03:00]}  Nc6 {[%clk 0:02:54]} 5. Nc3 {[%clk 0:03:00]}  g6 {[%clk 0:02:53]} 6. Bxd3 {[%clk 0:03:00]}  Bg7 {[%clk 0:02:53]} 7. Nge2 {[%clk 0:03:00]}  d6 {[%clk 0:02:52]} 8. h3 {[%clk 0:03:00]}  Nf6 {[%clk 0:02:49]} 9. O-O {[%clk 0:03:01]}  O-O {[%clk 0:02:48]} 10. Be3 {[%clk 0:03:01]}  Be6 {[%clk 0:02:41]} 11. Rc1 {[%clk 0:02:59]}  Ne5 {[%clk 0:02:38]} 12. b3 {[%clk 0:02:59]}  Nxd3 {[%clk 0:02:37]} 13. Qxd3 {[%clk 0:02:58]}  a6 {[%clk 0:02:34]} 14. f4 {[%clk 0:02:57]}  Rc8 {[%clk 0:02:30]} 15. g4 {[%clk 0:02:29]}  Bd7 {[%clk 0:02:24]} 16. g5 {[%clk 0:02:10]}  Nh5 {[%clk 0:02:22]} 17. Nd5 {[%clk 0:01:44]}  Bc6 {[%clk 0:02:04]} 18. f5 {[%clk 0:01:02]}  b5 {[%clk 0:01:47]} 19. Bd4 {[%clk 0:00:32]}  bxc4 {[%clk 0:01:38]} 20. bxc4 {[%clk 0:00:30]}  Bxd5 {[%clk 0:01:32]} 21. exd5 {[%clk 0:00:24]}  Qd7 {[%clk 0:01:23]} 22. Bxg7 {[%clk 0:00:22]}  Kxg7 {[%clk 0:01:15]} 23. Nd4 {[%clk 0:00:20]}  Qa4 {[%clk 0:01:06]} 24. Nc6 {[%clk 0:00:16]}  Rxc6 {[%clk 0:01:01]} 25. dxc6 {[%clk 0:00:15]}  Qxc6 {[%clk 0:01:01]} 26. f6+ {[%clk 0:00:12]}  exf6 {[%clk 0:00:59]} 27. gxf6+ {[%clk 0:00:13]}  Kg8 {[%clk 0:00:53]} 28. Qd5 {[%clk 0:00:13]}  Qb6+ {[%clk 0:00:51]} 29. Kg2 {[%clk 0:00:12]}  Re8 {[%clk 0:00:46]} 30. Rce1 {[%clk 0:00:10]}  Rxe1 {[%clk 0:00:42]} 31. Rxe1 {[%clk 0:00:10]}  Nxf6 {[%clk 0:00:42]} 32. Qd2 {[%clk 0:00:09]}  Qc5 {[%clk 0:00:39]} 33. Qc3 {[%clk 0:00:09]}  Qg5+ {[%clk 0:00:38]} 34. Kh2 {[%clk 0:00:08]}  h5 {[%clk 0:00:35]} 35. Rg1 {[%clk 0:00:08]}  Qf5 {[%clk 0:00:34]} 36. Qg3 {[%clk 0:00:08]}  Ne4 {[%clk 0:00:32]} 37. Qg2 {[%clk 0:00:07]}  Qf4+ {[%clk 0:00:32]} 38. Kh1 {[%clk 0:00:04]}  Nf2+ {[%clk 0:00:31]} 0-1


[Site "https://www.chess.com"]